fUSD/lending_fUSD_20250214
["ID","MTS","AMOUNT","RATE_DAILY","PERIOD"]
[353040771,1739511043255,-263.24703795,0.00013698,2]
[353040772,1739511043273,-240.15358237,0.00013698,2]
[353040773,1739511043282,-500.0,0.00013698,2]
[353040774,1739511043292,-516.89189182,0.00013698,2]
[353040775,1739511043301,-610.18335157,0.00013698,2]
[353040776,1739511043310,-505.18738113,0.00013698,2]
[353040777,1739511043320,-500.0,0.00013698,2]
[353040778,1739511043331,-500.0,0.00013698,2]
[353040779,1739511043340,-502.42411543,0.00013698,2]
[353040780,1739511043349,-218.63802751,0.00013698,2]
[353040781,1739511043360,-284.43288513,0.00013698,2]
[353040782,1739511043370,-500.0,0.00013698,2]
[353040783,1739511043379,-419.74608829,0.00013698,2]
[353040784,1739511043388,-500.0,0.00013698,2]
[353040785,1739511043397,-42.15343438,0.00013698,2]
[353040786,1739511043411,-457.84656562,0.00013698,2]
[353040787,1739511043420,-500.0,0.00013698,2]
[353040788,1739511043429,-500.0,0.00013698,2]
[353040789,1739511043438,-500.0,0.00013698,2]
[353040790,1739511043447,-500.0,0.00013698,2]
[353040791,1739511043458,-589.33396476,0.00013698,2]
[353040792,1739511043469,-500.0,0.00013698,2]
[353040793,1739511043479,-500.0,0.00013698,2]
[353040794,1739511043491,-500.0,0.00013698,2]
[353040795,1739511043503,-432.97978956,0.00013698,2]
[353040796,1739511043518,-67.02021044,0.00013698,2]
[353040797,1739511043529,-500.0,0.00013698,2]
[353040798,1739511043540,-500.0,0.00013698,2]
[353040799,1739511043550,-806.19,0.00013698,2]
[353040800,1739511043560,-500.0,0.00013698,2]
[353040801,1739511043570,-500.0,0.00013698,2]
[353040802,1739511043582,-500.0,0.00013698,2]
[353040803,1739511043593,-500.0,0.00013698,2]
[353040804,1739511043604,-500.0,0.00013699,2]
[353040805,1739511043615,-500.0,0.00013699,2]
[353040806,1739511043626,-500.0,0.00013699,2]
[353040807,1739511043638,-500.0,0.00013699,2]
[353040808,1739511043649,-500.0,0.00013699,2]
[353040809,1739511043660,-155.11,0.00013699,2]
[353040810,1739511043672,-200.0,0.00013699,2]
[353040811,1739511043684,-691.46,0.00013743,2]
[353040812,1739511043695,-1059.0,0.00013758,2]
[353040813,1739511043706,-487.714904,0.0001378,2]
[353040814,1739511043716,-500.0,0.0001378,2]
[353040815,1739511043727,-524.19,0.0001378,2]
[353040816,1739511043738,-503.34381142,0.0001378,2]
[353040817,1739511043748,-500.0,0.0001378,2]
[353040818,1739511043758,-154.47303534,0.0001378,2]
[353040819,1739511043770,-345.52696466,0.0001378,2]
[353040820,1739511043780,-469.07303534,0.0001378,2]
[353040821,1739511043795,-30.92696466,0.0001378,2]
[353040822,1739511043805,-309.65,0.0001378,2]
[353040823,1739511043816,-500.0,0.0001378,2]
[353040824,1739511043827,-500.0,0.0001378,2]
[353040825,1739511043838,-500.0,0.0001378,2]
[353040826,1739511043848,-226.40303511,0.0001378,2]
[353040827,1739511043859,-500.0,0.0001378,2]
[353040828,1739511043871,-412.65255298,0.0001378,2]
[353040829,1739511043882,-500.0,0.0001378,2]
[353040830,1739511043893,-330.07,0.0001378,2]
[353040831,1739511043904,-500.0,0.0001378,2]
[353040832,1739511043915,-500.0,0.0001378,2]
[353040833,1739511043926,-324.99013586,0.0001378,2]
[353040834,1739511043937,-500.0,0.0001378,2]
[353040835,1739511043948,-500.0,0.0001378,2]
[353040836,1739511043959,-500.0,0.0001378,2]
[353040837,1739511043970,-500.0,0.0001378,2]
[353040838,1739511043983,-500.0,0.0001378,2]
[353040839,1739511043993,-611.53,0.0001378,2]
[353040840,1739511044004,-388.64351244,0.0001378,2]
[353040841,1739511044015,-532.81,0.0001378,2]
[353040842,1739511044025,-482.62,0.0001378,2]
[353040843,1739511044036,-332.70183843,0.0001378,2]
[353040844,1739511044048,-264.82015144,0.0001378,2]
[353040845,1739511044058,-451.68979851,0.0001378,2]
[353040846,1739511044069,-461.84,0.0001378,2]
[353040847,1739511044079,-178.66647158,0.0001378,2]
[353040848,1739511044089,-500.0,0.0001378,2]
[353040849,1739511044100,-500.0,0.0001378,2]
[353040850,1739511044111,-500.0,0.0001378,2]
[353040851,1739511044122,-500.0,0.0001378,2]
[353040852,1739511044133,-506.79939353,0.0001378,2]
[353040853,1739511044144,-500.0,0.0001378,2]
[353040854,1739511044155,-309.43,0.0001378,2]
[353040855,1739511044165,-233.1974901,0.0001378,2]
[353040856,1739511044175,-500.0,0.0001378,2]
[353040857,1739511044185,-500.0,0.0001378,2]
[353040858,1739511044195,-505.88106512,0.0001378,2]
[353040859,1739511044207,-504.73005535,0.0001378,2]
[353040860,1739511044217,-504.43177926,0.0001378,2]
[353040861,1739511044226,-504.95946472,0.0001378,2]
[353040862,1739511044237,-500.0,0.0001378,2]
[353040863,1739511044247,-500.0,0.0001378,2]
[353040864,1739511044258,-507.39,0.0001378,2]
[353040865,1739511044270,-500.0,0.0001378,2]
[353040866,1739511044282,-500.0,0.0001378,2]
[353040867,1739511044294,-508.30618127,0.0001378,2]
[353040868,1739511044304,-500.0,0.0001378,2]
[353040869,1739511044313,-500.0,0.0001378,2]
[353040870,1739511044323,-504.94841345,0.0001378,2]
[353040871,1739511044333,-500.0,0.0001378,2]
[353040872,1739511044342,-500.0,0.0001378,2]
[353040873,1739511044352,-303.19155723,0.0001378,2]
[353040874,1739511044363,-500.0,0.0001378,2]
[353040875,1739511044374,-349.77,0.0001378,2]
[353040876,1739511044385,-500.0,0.0001378,2]
[353040877,1739511044397,-500.0,0.0001378,2]
[353040878,1739511044408,-504.49027362,0.0001378,2]
[353040879,1739511044418,-500.0,0.0001378,2]
[353040880,1739511044428,-515.11909904,0.0001378,2]
[353040881,1739511044438,-500.0,0.0001378,2]
[353040882,1739511044448,-500.0,0.0001378,2]
[353040883,1739511044460,-505.18536688,0.0001378,2]
[353040884,1739511044470,-500.0,0.0001378,2]
[353040885,1739511044481,-500.0,0.0001378,2]
[353040886,1739511044491,-500.0,0.0001378,2]
[353040887,1739511044501,-500.0,0.0001378,2]
[353040888,1739511044511,-500.0,0.0001378,2]
[353040889,1739511044522,-191.71699052,0.0001378,2]
[353040890,1739511044532,-151.0,0.0001378,2]
[353040891,1739511044543,-500.0,0.0001378,2]
[353040892,1739511044553,-505.72316022,0.0001378,2]
[353040893,1739511044563,-508.30936303,0.0001378,2]
[353040894,1739511044574,-500.0,0.0001378,2]
[353040895,1739511044584,-451.52708607,0.0001378,2]
[353040896,1739511044595,-647.85309929,0.0001378,2]
[353040897,1739511044606,-434.75289023,0.0001378,2]
[353040898,1739511044617,-251.51005436,0.0001378,2]
[353040899,1739511044627,-500.0,0.0001378,2]
[353040900,1739511044638,-500.0,0.0001378,2]
[353040901,1739511044648,-500.0,0.0001378,2]
[353040902,1739511044658,-500.0,0.0001378,2]
[353040903,1739511044668,-184.62,0.0001378,2]
[353040904,1739511044678,-458.76,0.0001378,2]
[353040905,1739511044688,-500.0,0.0001378,2]
[353040906,1739511044700,-500.0,0.0001378,2]
[353040907,1739511044711,-151.0,0.0001378,2]
[353040908,1739511044722,-500.0,0.0001378,2]
[353040909,1739511044732,-500.0,0.0001378,2]
[353040910,1739511044743,-500.0,0.0001378,2]
[353040911,1739511044758,-169.01,0.0001378,2]
[353040912,1739511044768,-500.0,0.0001378,2]
[353040913,1739511044778,-500.0,0.0001378,2]
[353040914,1739511044788,-500.0,0.0001378,2]
[353040915,1739511044798,-643.07,0.0001378,2]
[353040916,1739511044808,-500.0,0.0001378,2]
[353040917,1739511044820,-500.0,0.0001378,2]
[353040918,1739511044831,-457.24891658,0.0001378,2]
[353040919,1739511044841,-500.0,0.0001378,2]
[353040920,1739511044851,-238.51763368,0.0001378,2]
[353040921,1739511044862,-500.0,0.0001378,2]
[353040922,1739511044872,-500.0,0.0001378,2]
[353040923,1739511044884,-500.0,0.0001378,2]
[353040924,1739511044901,-304.66324344,0.0001378,2]
[353040925,1739511044912,-500.0,0.0001378,2]
[353040926,1739511044923,-500.0,0.0001378,2]
[353040927,1739511044935,-500.0,0.0001378,2]
[353040928,1739511044946,-500.0,0.0001378,2]
[353040929,1739511044957,-500.0,0.0001378,2]
[353040930,1739511044968,-500.0,0.0001378,2]
[353040931,1739511044978,-279.19,0.0001378,2]
[353040932,1739511044989,-500.0,0.0001378,2]
[353040933,1739511044999,-500.0,0.0001378,2]
[353040934,1739511045010,-500.0,0.0001378,2]
[353040935,1739511045020,-500.0,0.0001378,2]
[353040936,1739511045031,-500.0,0.0001378,2]
[353040937,1739511045041,-578.24,0.0001378,2]
[353040938,1739511045051,-500.0,0.0001378,2]
[353040939,1739511045062,-500.0,0.0001378,2]
[353040940,1739511045072,-500.0,0.0001378,2]
[353040941,1739511045083,-500.0,0.0001378,2]
[353040942,1739511045094,-500.0,0.0001378,2]
[353040943,1739511045105,-500.0,0.0001378,2]
[353040944,1739511045116,-161.95900769,0.0001378,2]
[353040945,1739511045127,-444.73,0.0001378,2]
[353040946,1739511045136,-500.0,0.0001378,2]
[353040947,1739511045145,-500.0,0.0001378,2]
[353040948,1739511045155,-500.0,0.0001378,2]
[353040949,1739511045164,-500.0,0.0001378,2]
[353040950,1739511045174,-500.0,0.0001378,2]
[353040951,1739511045343,-623.7810162,0.0001378,2]
[353040952,1739511045354,-806.19,0.0001378,2]
[353040953,1739511045364,-500.0,0.0001378,2]
[353040954,1739511045374,-500.0,0.0001378,2]
[353040955,1739511045383,-500.0,0.0001378,2]
[353040956,1739511045393,-500.0,0.0001378,2]
[353040957,1739511045402,-487.714904,0.00013863,2]
[353040958,1739511045411,-160.918412,0.00013863,2]
[353040959,1739511045420,-500.0,0.00013863,2]
[353040960,1739511045430,-155.224052,0.00013863,2]
[353040961,1739511045439,-596.09427304,0.00013863,2]
[353040962,1739511045449,-500.0,0.00013863,2]
[353040963,1739511045459,-500.0,0.00013863,2]
[353040964,1739511045468,-500.0,0.00013863,2]
[353040965,1739511045478,-350.79,0.00013863,2]
[353040966,1739511045487,-199.61229529,0.00013863,2]
[353040967,1739511045496,-500.0,0.00013863,2]
[353040968,1739511045505,-500.0,0.00013863,2]
[353040969,1739511045514,-309.54,0.00013863,2]
[353040970,1739511045523,-500.0,0.00013863,2]
[353040971,1739511045532,-600.83,0.00013863,2]
[353040972,1739511045541,-500.0,0.00013863,2]
[353040973,1739511045550,-402.77,0.00013863,2]
[353040974,1739511045559,-500.0,0.00013863,2]
[353040975,1739511045568,-367.60914549,0.00013863,2]
[353040976,1739511045577,-500.0,0.00013863,2]
[353040977,1739511045587,-500.0,0.00013863,2]
[353040978,1739511045596,-500.0,0.00013863,2]
[353040979,1739511045605,-500.0,0.00013863,2]
[353040980,1739511045616,-500.0,0.00013863,2]
[353040981,1739511045625,-434.15,0.00013863,2]
[353040982,1739511045635,-469.33608915,0.00013863,2]
[353040983,1739511045644,-500.0,0.00013863,2]
[353040984,1739511045654,-505.3611789,0.00013863,2]
[353040985,1739511045663,-503.07324977,0.00013863,2]
[353040986,1739511045672,-216.35,0.00013863,2]
[353040987,1739511045681,-500.0,0.00013863,2]
[353040988,1739511045690,-500.0,0.00013863,2]
[353040989,1739511045699,-260.55,0.00013863,2]
[353040990,1739511045710,-500.0,0.00013863,2]
[353040991,1739511045720,-227.44,0.00013863,2]
[353040992,1739511045730,-551.12,0.00013863,2]
[353040993,1739511045739,-500.0,0.00013863,2]
[353040994,1739511045749,-500.0,0.00013863,2]
[353040995,1739511045758,-500.0,0.00013863,2]
[353040996,1739511045767,-500.0,0.00013863,2]
[353040997,1739511045776,-500.0,0.00013863,2]
[353040998,1739511045785,-500.0,0.00013863,2]
[353041000,1739511045795,-500.0,0.00013863,2]
[353041002,1739511045805,-248.05807131,0.00013863,2]
[353041004,1739511045814,-470.31539231,0.00013863,2]
[353041006,1739511045824,-500.0,0.00013863,2]
[353041008,1739511045833,-500.0,0.00013863,2]
[353041010,1739511045843,-500.0,0.00013863,2]
[353041012,1739511045853,-545.6278961,0.00013863,2]
[353041014,1739511045862,-500.0,0.00013863,2]
[353041016,1739511045871,-500.0,0.00013863,2]
[353041018,1739511045881,-500.0,0.00013863,2]
[353041020,1739511045889,-500.0,0.00013863,2]
[353041022,1739511045899,-409.42674037,0.00013863,2]
[353041025,1739511045912,-90.57325963,0.00013863,2]
[353041026,1739511045921,-404.28,0.00013863,2]
[353041028,1739511045931,-449.87,0.00013863,2]
[353041030,1739511045939,-643.07,0.00013863,2]
[353041032,1739511045949,-72.2858746,0.00013863,2]
[353041035,1739511045962,-427.7141254,0.00013863,2]
[353041037,1739511045971,-48.1561746,0.00013863,2]
[353041040,1739511045994,-451.8438254,0.00013863,2]
[353041042,1739511046003,-500.0,0.00013863,2]
[353041044,1739511046013,-500.0,0.00013863,2]
[353041045,1739511046022,-315.3,0.00013863,2]
[353041046,1739511046031,-500.0,0.00013863,2]
[353041047,1739511046040,-500.0,0.00013863,2]
[353041048,1739511046049,-500.0,0.00013863,2]
[353041049,1739511046059,-500.0,0.00013863,2]
[353041050,1739511046068,-500.0,0.00013863,2]
[353041051,1739511046077,-500.0,0.00013863,2]
[353041052,1739511046086,-242.8561746,0.00013863,2]
[353041053,1739511046097,-257.1438254,0.00013863,2]
[353041054,1739511046106,-500.0,0.00013863,2]
[353041055,1739511046115,-500.0,0.00013863,2]
[353041056,1739511046124,-416.03,0.00013863,2]
[353041057,1739511046134,-500.0,0.00013863,2]
[353041058,1739511046143,-500.0,0.00013863,2]
[353041059,1739511046153,-269.9919016,0.00013863,2]
[353041060,1739511046162,-500.0,0.00013863,2]
[353041061,1739511046172,-500.0,0.00013863,2]
[353041062,1739511046181,-293.95,0.00013863,2]
[353041063,1739511046190,-500.0,0.00013863,2]
[353041064,1739511046201,-500.0,0.00013863,2]
[353041065,1739511046209,-500.0,0.00013863,2]
[353041066,1739511046219,-500.0,0.00013863,2]
[353041067,1739511046228,-500.0,0.00013863,2]
[353041068,1739511046238,-328.54,0.00013863,2]
[353041069,1739511046248,-500.0,0.00013863,2]
[353041070,1739511046258,-806.19,0.00013863,2]
[353041071,1739511046267,-500.0,0.00013863,2]
[353041072,1739511046276,-500.0,0.00013863,2]
[353041073,1739511046286,-500.0,0.00013863,2]
[353041074,1739511046296,-322.47399677,0.00013863,2]
[353041075,1739511046305,-150.0,0.0001389,2]
[353041076,1739511046314,-376.07,0.0001389,2]
[353041077,1739511046323,-999.37,0.0001389,2]
[353041078,1739511046333,-2000.0,0.000139,5]
[353041079,1739511046343,-402.44,0.00013932,2]
[353041080,1739511046352,-487.714904,0.00013945,2]
[353041081,1739511046362,-160.918412,0.00013945,2]
[353041082,1739511046371,-500.0,0.00013945,2]
[353041083,1739511046380,-153.66894468,0.00013945,2]
[353041084,1739511046389,-646.73,0.00013945,2]
[353041085,1739511046399,-500.0,0.00013945,2]
[353041086,1739511046408,-500.0,0.00013945,2]
[353041087,1739511046417,-619.45,0.00013945,2]
[353041088,1739511046426,-500.0,0.00013945,2]
[353041089,1739511046436,-647.93,0.00013945,2]
[353041090,1739511046445,-500.0,0.00013945,2]
[353041091,1739511046453,-184.16,0.00013945,2]
[353041092,1739511046462,-500.0,0.00013945,2]
[353041093,1739511046471,-500.0,0.00013945,2]
[353041094,1739511046480,-349.85,0.00013945,2]
[353041095,1739511046490,-500.0,0.00013945,2]
[353041096,1739511046500,-151.0,0.00013945,2]
[353041097,1739511046509,-151.0,0.00013945,2]
[353041098,1739511046518,-151.0,0.00013945,2]
[353041099,1739511046527,-151.0,0.00013945,2]
[353041100,1739511046536,-151.0,0.00013945,2]
[353041101,1739511046545,-151.0,0.00013945,2]
[353041102,1739511046555,-151.0,0.00013945,2]
[353041103,1739511046564,-151.0,0.00013945,2]
[353041104,1739511046573,-151.0,0.00013945,2]
[353041105,1739511046583,-151.0,0.00013945,2]
[353041106,1739511046592,-151.0,0.00013945,2]
[353041107,1739511046601,-151.0,0.00013945,2]
[353041108,1739511046611,-151.0,0.00013945,2]
[353041109,1739511046620,-151.0,0.00013945,2]
[353041110,1739511046630,-151.0,0.00013945,2]
[353041111,1739511046640,-151.0,0.00013945,2]
[353041112,1739511046649,-151.0,0.00013945,2]
[353041113,1739511046659,-151.0,0.00013945,2]
[353041114,1739511046669,-151.0,0.00013945,2]
[353041115,1739511046679,-151.0,0.00013945,2]
[353041116,1739511046689,-151.0,0.00013945,2]
[353041117,1739511046698,-151.0,0.00013945,2]
[353041118,1739511046708,-151.0,0.00013945,2]
[353041119,1739511046717,-151.0,0.00013945,2]
[353041120,1739511046727,-510.79,0.00013945,2]
[353041121,1739511046736,-151.0,0.00013945,2]
[353041122,1739511046746,-151.0,0.00013945,2]
[353041123,1739511046759,-151.0,0.00013945,2]
[353041124,1739511046768,-151.0,0.00013945,2]
[353041125,1739511046777,-151.0,0.00013945,2]
[353041126,1739511046787,-151.0,0.00013945,2]
[353041127,1739511046798,-151.0,0.00013945,2]
[353041128,1739511046807,-151.0,0.00013945,2]
[353041129,1739511046817,-151.0,0.00013945,2]
[353041130,1739511046826,-151.0,0.00013945,2]
[353041131,1739511046836,-171.45822614,0.00013945,2]
[353041132,1739511046846,-500.0,0.00013945,2]
[353041133,1739511046856,-329.72,0.00013945,2]
[353041134,1739511046865,-171.41,0.00013945,2]
[353041135,1739511046875,-500.0,0.00013945,2]
[353041136,1739511046886,-500.0,0.00013945,2]
[353041137,1739511046895,-500.0,0.00013945,2]
[353041138,1739511046904,-500.0,0.00013945,2]
[353041139,1739511046914,-500.0,0.00013945,2]
[353041140,1739511046923,-500.0,0.00013945,2]
[353041141,1739511046933,-500.0,0.00013945,2]
[353041142,1739511046943,-151.038542,0.00013945,2]
[353041143,1739511046953,-500.0,0.00013945,2]
[353041144,1739511046963,-500.0,0.00013945,2]
[353041145,1739511046973,-500.0,0.00013945,2]
[353041146,1739511046982,-318.75,0.00013945,2]
[353041147,1739511046993,-166.2,0.00013945,2]
[353041148,1739511047003,-500.0,0.00013945,2]
[353041149,1739511047013,-500.0,0.00013945,2]
[353041150,1739511047023,-500.0,0.00013945,2]
[353041151,1739511047032,-643.07,0.00013945,2]
[353041152,1739511047042,-500.0,0.00013945,2]
[353041153,1739511047052,-575.41463398,0.00013945,2]
[353041154,1739511047062,-485.60377484,0.00013945,2]
[353041155,1739511047075,-500.0,0.00013945,2]
[353041156,1739511047085,-500.0,0.00013945,2]
[353041157,1739511047094,-500.0,0.00013945,2]
[353041158,1739511047104,-296.32961393,0.00013945,2]
[353041159,1739511047113,-500.0,0.00013945,2]
[353041160,1739511047122,-500.0,0.00013945,2]
[353041161,1739511047132,-415.71,0.00013945,2]
[353041162,1739511047141,-500.0,0.00013945,2]
[353041163,1739511047150,-242.23,0.00013945,2]
[353041164,1739511047159,-500.0,0.00013945,2]
[353041165,1739511047169,-271.23893647,0.00013945,2]
[353041166,1739511047178,-522.09469313,0.00013945,2]
[353041167,1739511047187,-491.73935164,0.00013945,2]
[353041168,1739511047197,-500.0,0.00013945,2]
[353041169,1739511047208,-500.0,0.00013945,2]
[353041170,1739511047217,-500.0,0.00013945,2]
[353041171,1739511047227,-500.0,0.00013945,2]
[353041172,1739511047236,-500.0,0.00013945,2]
[353041173,1739511047246,-500.0,0.00013945,2]
[353041174,1739511047255,-500.0,0.00013945,2]
[353041175,1739511047265,-806.19,0.00013945,2]
[353041176,1739511047274,-500.0,0.00013945,2]
[353041177,1739511047283,-500.0,0.00013945,2]
[353041178,1739511047292,-500.0,0.00013945,2]
[353041179,1739511047302,-195.17,0.00014,2]
[353041180,1739511047311,-1002.6454232,0.00014,7]
[353041181,1739511047321,-487.714904,0.00014027,2]
[353041182,1739511047330,-160.918412,0.00014027,2]
[353041183,1739511047339,-500.0,0.00014027,2]
[353041184,1739511047349,-155.224052,0.00014027,2]
[353041185,1739511047358,-348.96440557,0.00014027,2]
[353041186,1739511047368,-251.6285755,0.00014027,2]
[353041187,1739511047377,-500.0,0.00014027,2]
[353041188,1739511047386,-377.35,0.00014027,2]
[353041189,1739511047397,-500.0,0.00014027,2]
[353041190,1739511047407,-595.39650615,0.00014027,2]
[353041191,1739511047417,-500.0,0.00014027,2]
[353041192,1739511047426,-500.0,0.00014027,2]
[353041193,1739511047436,-500.0,0.00014027,2]
[353041194,1739511047446,-476.58,0.00014027,2]
[353041195,1739511047456,-500.0,0.00014027,2]
[353041196,1739511047466,-500.0,0.00014027,2]
[353041197,1739511047475,-500.0,0.00014027,2]
[353041198,1739511047486,-500.0,0.00014027,2]
[353041199,1739511047495,-500.0,0.00014027,2]
[353041200,1739511047505,-500.0,0.00014027,2]
[353041201,1739511047515,-500.0,0.00014027,2]
[353041202,1739511047526,-500.0,0.00014027,2]
[353041203,1739511047535,-204.4,0.00014027,2]
[353041204,1739511047545,-500.0,0.00014027,2]
[353041205,1739511047555,-500.0,0.00014027,2]
[353041206,1739511047565,-643.07,0.00014027,2]
[353041207,1739511047575,-500.0,0.00014027,2]
[353041208,1739511047583,-500.0,0.00014027,2]
[353041209,1739511047592,-500.0,0.00014027,2]
[353041210,1739511047602,-511.2,0.00014027,2]
[353041211,1739511047612,-500.0,0.00014027,2]
[353041212,1739511047623,-500.0,0.00014027,2]
[353041213,1739511047632,-500.0,0.00014027,2]
[353041214,1739511047641,-500.0,0.00014027,2]
[353041215,1739511047651,-500.0,0.00014027,2]
[353041216,1739511047660,-643.38,0.00014027,2]
[353041217,1739511047669,-500.0,0.00014027,2]
[353041218,1739511047678,-500.0,0.00014027,2]
[353041219,1739511047688,-500.0,0.00014027,2]
[353041220,1739511047698,-500.0,0.00014027,2]
[353041221,1739511047708,-806.19,0.00014027,2]
[353041222,1739511047718,-500.0,0.00014027,2]
[353041223,1739511047728,-500.0,0.00014027,2]
[353041224,1739511047737,-500.0,0.00014027,2]
[353041225,1739511047748,-487.714904,0.00014109,2]
[353041226,1739511047759,-160.918412,0.00014109,2]
[353041227,1739511047768,-500.0,0.00014109,2]
[353041228,1739511047778,-575.78798514,0.00014109,2]
[353041229,1739511047788,-628.49,0.00014109,2]
[353041230,1739511047797,-500.0,0.00014109,2]
[353041231,1739511047807,-500.0,0.00014109,2]
[353041232,1739511047816,-500.0,0.00014109,2]
[353041233,1739511047826,-500.0,0.00014109,2]
[353041234,1739511047835,-500.0,0.00014109,2]
[353041235,1739511047845,-500.0,0.00014109,2]
[353041236,1739511047855,-500.0,0.00014109,2]
[353041237,1739511047865,-500.0,0.00014109,2]
[353041238,1739511047875,-500.0,0.00014109,2]
[353041239,1739511047886,-500.0,0.00014109,2]
[353041240,1739511047897,-500.0,0.00014109,2]
[353041241,1739511047907,-500.0,0.00014109,2]
[353041242,1739511047917,-500.0,0.00014109,2]
[353041243,1739511047927,-643.07,0.00014109,2]
[353041244,1739511047936,-500.0,0.00014109,2]
[353041245,1739511047946,-500.0,0.00014109,2]
[353041246,1739511047957,-500.0,0.00014109,2]
[353041247,1739511047968,-500.0,0.00014109,2]
[353041248,1739511047978,-500.0,0.00014109,2]
[353041249,1739511047989,-500.0,0.00014109,2]
[353041250,1739511048000,-500.0,0.00014109,2]
[353041251,1739511048010,-340.75,0.00014109,2]
[353041252,1739511048021,-478.38300961,0.00014109,2]
[353041253,1739511048031,-500.0,0.00014109,2]
[353041254,1739511048042,-500.0,0.00014109,2]
[353041255,1739511048052,-500.0,0.00014109,2]
[353041256,1739511048063,-806.19,0.00014109,2]
[353041257,1739511048073,-500.0,0.00014109,2]
[353041258,1739511048083,-250.22,0.00014109,2]
[353041259,1739511048093,-500.0,0.00014109,2]
[353041260,1739511048103,-202.0,0.0001411,2]
[353041261,1739511048113,-487.714904,0.00014191,2]
[353041262,1739511048123,-160.918412,0.00014191,2]
[353041263,1739511048132,-500.0,0.00014191,2]
[353041264,1739511048142,-155.224052,0.00014191,2]
[353041265,1739511048152,-500.0,0.00014191,2]
[353041266,1739511048162,-371.83,0.00014191,2]
[353041267,1739511048172,-500.0,0.00014191,2]
[353041268,1739511048182,-431.47,0.00014191,2]
[353041269,1739511048191,-500.0,0.00014191,2]
[353041270,1739511048201,-500.0,0.00014191,2]
[353041271,1739511048212,-500.0,0.00014191,2]
[353041272,1739511048222,-500.0,0.00014191,2]
[353041273,1739511048233,-515.39,0.00014191,2]
[353041274,1739511048243,-573.97,0.00014191,2]
[353041275,1739511048254,-500.0,0.00014191,2]
[353041276,1739511048263,-500.0,0.00014191,2]
[353041277,1739511048273,-500.0,0.00014191,2]
[353041278,1739511048283,-643.07,0.00014191,2]
[353041279,1739511048294,-500.0,0.00014191,2]
[353041280,1739511048304,-500.0,0.00014191,2]
[353041281,1739511048315,-500.0,0.00014191,2]
[353041282,1739511048325,-500.0,0.00014191,2]
[353041283,1739511048335,-172.13,0.00014191,2]
[353041284,1739511048345,-500.0,0.00014191,2]
[353041285,1739511048355,-334.24,0.00014191,2]
[353041286,1739511048513,-500.0,0.00014191,2]
[353041287,1739511048525,-500.0,0.00014191,2]
[353041288,1739511048535,-500.0,0.00014191,2]
[353041289,1739511048545,-806.19,0.00014191,2]
[353041290,1739511048555,-500.0,0.00014191,2]
[353041291,1739511048566,-500.0,0.00014191,2]
[353041292,1739511048577,-487.714904,0.00014273,2]
[353041293,1739511048587,-500.0,0.00014273,2]
[353041294,1739511048598,-500.0,0.00014273,2]